Cogmind - Beta 11 *** ADVENTURER MODE // 2022.04.06 @ 16:30:23 Player: Owlsley Result: Destroyed by as-68837 with Assembled Rifle Performance ------------- Evolutions (0) 0 Regions Visited (2) 400 Robots Destroyed (27) 135 Value Destroyed (575) 575 Prototype IDs (0) 0 Alien Tech Used (0) 0 Bonus (0) 0 TOTAL SCORE: 1110 Bonus ------- None Cogmind --------- Core Integrity 0/250 Matter 262/300 Energy 125/125 System Corruption 3% Temperature Cool (2) Movement Flying (40) Location -10/Mines Parts ------- > --- POWER (1) -------- Light Ion Engine > --- PROPULSION (2) --- Flight Unit > --- UTILITY (2) ------ Targeting Computer > --- WEAPON (2) ------- (None) > --- INVENTORY (5) ---- Disposable Heat Sink Disposable Heat Sink Visual Processing Unit Light Armor Plating Beam Cannon Peak State ------------ > --- POWER ------------ Light Nuclear Core > --- PROPULSION ------- Light Treads Light Treads > --- UTILITY ---------- Disposable Heat Sink Medium Storage Unit > --- WEAPON ----------- Beam Cannon Beam Cannon > --- INVENTORY -------- Light Ion Engine Disposable Heat Sink Disposable Heat Sink Core Shielding Light Armor Plating Light Armor Plating Beam Cannon Beam Cannon Beam Cannon Beam Cannon [Rating: 11] Favorites ----------- Power Light Nuclear Core Engine Light Ion Engine Power Core Light Nuclear Core Propulsion Light Treads Treads Light Treads Leg Aluminum Leg Flight Unit Flight Unit Utility Disposable Heat Sink Device Disposable Heat Sink Storage Medium Storage Unit Processor Targeting Computer Protection Light Armor Plating Weapon Beam Cannon Energy Cannon Beam Cannon Ballistic Gun Assault Rifle Build | -11 -10 -10 ------- Run | Scr Mat Min Slots Evolved . | . . . Power . | . . . Propulsion . | . . . Utility . | . . . Weapon . | . . . Parts Attached 19 | . 14 5 Power 2 | . 1 1 Engine 1 | . . 1 Core 1 | . 1 . Reactor . | . . . Propulsion 4 | . 3 1 Treads 3 | . 3 . Leg . | . . . Wheel . | . . . Hover . | . . . Flight 1 | . . 1 Utility 8 | . 7 1 Device 4 | . 4 . Storage 2 | . 2 . Processor 1 | . . 1 Hackware . | . . . Protection 1 | . 1 . Artifact . | . . . Weapon 5 | . 3 2 Energy Gun . | . . . Energy Cannon 5 | . 3 2 Ballistic Gun . | . . . Ballistic Cannon . | . . . Launcher . | . . . Special Weapon . | . . . Impact Weapon . | . . . Slashing Weapon . | . . . Piercing Weapon . | . . . Special Melee Weapon . | . . . Unidentified Prototypes . | . . . Parts Lost 4 | . . 4 Power 1 | . . 1 Propulsion 2 | . . 2 Utility 1 | . . 1 Weapon . | . . . Highest Loss Streak 4 | . . 4 To Critical Strikes . | . . . Average Slot Usage (%) 97 | . 99 92 Engine 6 | . 7 . Core 7 | . 6 12 Treads 22 | . 22 24 Leg 4 | . 5 . Device 11 | . 11 12 Storage 13 | . 14 12 Protection 1 | . 1 . Energy Cannon 23 | . 22 26 Ballistic Gun 3 | . 4 . Naked Turns . | . . . Heaviest Build 32 | 12 32 32 Greatest Support 40 | 20 40 40 Greatest Overweight (x) 1 | . . 1 Average Overweight (x) . | . . . Largest Inventory Capacity 15 | . 15 15 Average Capacity 11 | . 10 14 Most Carried 14 | . 14 14 Average Carried 10 | . 9 13 Final Capacity 15 | 8 15 5 Final Carried 13 | 6 13 5 Class Distribution -------------------- 100% | Mutant Dominant Class ---------------- Mutant | -10/Materials Mutant | -10/Mines Resources | -11 -10 -10 ----------- Run | Scr Mat Min Matter Collected 444 | 200 208 36 Remotely . | . . . Salvage Created 891 | . 665 226 Parts 56 | . 39 17 Haulers Intercepted 2 | . 2 . Recyclers Shooed . | . . . Parts Field Recycled . | . . . Retrieved Matter . | . . . Parts Self-Destructed . | . . . Prevented . | . . . Kills | -11 -10 -10 ------- Run | Scr Mat Min Combat Hostiles Destroyed 19 | . 9 10 Guns 2 | . 2 . Cannons 17 | . 7 10 Classes Destroyed 6 | . 5 1 Builder 1 | . 1 . Hauler 2 | . 2 . Recycler 2 | . 2 . Watcher 3 | . 3 . Swarmer 8 | . . 8 Grunt 11 | . 9 2 Best Kill Streak 5 | . 5 3 Combat Bots Only 4 | . 4 3 Max Kills in Single Turn 2 | . 2 1 Gunslinging . | . . . Exploded . | . . . Melee . | . . . Uniques/NPCs Destroyed . | . . . Combat | -11 -10 -10 -------- Run | Scr Mat Min Damage Taken 981 | . 207 774 Core 258 | . 9 249 Absorbed by Shields . | . . . Regen/Repaired (Parts) 46 | . 46 . Core Remaining (%) 100 | 100 . . Volleys Fired 43 | . 27 16 Largest 2 | . 2 2 Hottest 120 | . 120 120 Shots Fired 84 | . 54 30 Gun 22 | . 22 . Cannon 62 | . 32 30 Launcher . | . . . Special . | . . . Kinetic 22 | . 22 . Thermal 62 | . 32 30 Explosive . | . . . Electromagnetic . | . . . Robot Hit Streak 12 | . 9 12 Robot Miss Streak 2 | . 2 2 Penetration Max . | . . . Secondary Targets . | . . . Shots Hit Robots 56 | . 36 20 Core Hits 33 | . 23 10 Critical Kills . | . . . Critical Parts Destroyed . | . . . Critical Strikes . | . . . Melee Attacks . | . . . Impact . | . . . Slashing . | . . . Piercing . | . . . Sneak Attacks . | . . . Combat Hostiles . | . . . Follow-up Attacks . | . . . Damage Inflicted 1005 | . 639 366 Guns 189 | . 189 . Cannons 816 | . 450 366 Explosions . | . . . Melee . | . . . Ramming . | . . . Kinetic 189 | . 189 . Thermal 816 | . 450 366 Explosive . | . . . Electromagnetic . | . . . Impact . | . . . Slashing . | . . . Piercing . | . . . Highest Corruption 3 | . 3 3 Average Corruption 2 | . 2 3 Corruption Purged . | . . . Corruption Blocked . | . . . Effects 19 | . 13 6 Message Errors 5 | . 3 2 Matter Fused 4 | . 3 1 Heat Flow Errors 1 | . 1 . Energy Discharges 2 | . 1 1 Data Loss (minor) 3 | . 2 1 Data Loss (major) 3 | . 3 . Misfires 1 | . . 1 Overload Shots . | . . . Overflow Damage 16 | . . 16 Projectiles 16 | . . 16 Explosions . | . . . Melee . | . . . Knockbacks . | . . . Impact . | . . . Kinetic . | . . . Secondary . | . . . Self-Inflicted Damage . | . . . Shots . | . . . Rammed . | . . . Targets Rammed . | . . . Kicked . | . . . Crushed . | . . . Highest Temperature 198 | . 197 198 Average Temperature 88 | . 85 92 Received Heat Transfer 159 | . 150 9 Siege Activations . | . . . Robots Corrupted . | . . . Combat Hostiles . | . . . Parts Fried . | . . . Impact Corruptions . | . . . Robots Melted . | . . . Combat Hostiles . | . . . Parts Melted 5 | . 3 2 Heat Transferred 1665 | . 925 740 Parts Sabotaged . | . . . Parts Stolen . | . . . Parts Stripped . | . . . Power Chain Reactions . | . . . Missiles Intercepted . | . . . Alert | -11 -10 -10 ------- Run | Scr Mat Min Peak Influence 233 | . 148 233 Initial 3 | . . 3 Average 87 | . 75 137 Maximum Alert Level 1 | . . 1 Low Security (%) 94 | . 100 73 Level 1 5 | . . 26 Level 2 . | . . . Level 3 . | . . . Level 4 . | . . . Level 5 . | . . . High Security . | . . . Max Security . | . . . Squads Dispatched 1 | . 1 . Investigation 1 | . 1 . Extermination . | . . . Reinforcement . | . . . Assault . | . . . Garrison . | . . . Intercept . | . . . Searches Triggered . | . . . Construction Impeded . | . . . Haulers Reinforced . | . . . Active Scanning Responses . | . . . Cargo Convoy Interrupts . | . . . Stealth | -11 -10 -10 --------- Run | Scr Mat Min Distress Signals 1 | . 1 . Communications Jammed . | . . . Distress Signals . | . . . Times Spotted 38 | . 18 20 Peak Tracking Total 6 | . 5 6 Tactical Retreats 3 | . 1 2 Traps | -11 -10 -10 ------- Run | Scr Mat Min Traps Triggered 4 | . 4 . Indirectly . | . . . Trap Hack Attempts . | . . . Triggered . | . . . Disarmed . | . . . Reprogrammed . | . . . Reused . | . . . Traps Extracted . | . . . Installed . | . . . Triggered . | . . . Machines | -11 -10 -10 ---------- Run | Scr Mat Min Machines Disabled . | . . . Max in Single Turn . | . . . Machines Sabotaged . | . . . Garrisons Compromised . | . . . Overloaded Fab Kills . | . . . Hacking | -11 -10 -10 --------- Run | Scr Mat Min Machines Accessed 10 | . 10 . Terminals 7 | . 7 . Fabricators . | . . . Repair Stations 1 | . 1 . Recycling Units 2 | . 2 . Scanalyzers . | . . . Garrison Access . | . . . Total Hacks 27 | . 27 . Successful 17 | . 17 . Failed 10 | . 10 . Catastrophic 2 | . 2 . Database Lockouts . | . . . Manual 16 | . 16 . Terminals 20 | . 20 . Fabricators . | . . . Repair Stations 2 | . 2 . Recycling Units 5 | . 5 . Scanalyzers . | . . . Garrison Access . | . . . Terminal Hacks 10 | . 10 . Robot Analysis 3 | . 3 . Terminal Index 1 | . 1 . Unreport Threat 2 | . 2 . Locate Traps 2 | . 2 . Hauler Manifests 1 | . 1 . Zone Layout 1 | . 1 . Fabricator Hacks . | . . . Repair Station Hacks 2 | . 2 . Scan Component 1 | . 1 . Repair 1 | . 1 . Recycling Unit Hacks . | . . . Scanalyzer . | . . . Garrison Access Hacks . | . . . Unauthorized Hacks 5 | . 5 . Terminals 2 | . 2 . Track 1 | . 1 . Operators 1 | . 1 . Fabricators . | . . . Repair Stations . | . . . Recycling Units 3 | . 3 . Reject 1 | . 1 . Mask 1 | . 1 . Tunnel 1 | . 1 . Scanalyzers . | . . . Garrison Access . | . . . Data Cores Recovered . | . . . Used . | . . . Hacking Detections 7 | . 7 . Full Trace Events 1 | . 1 . Feedback Events . | . . . Feedback Blocked . | . . . Robot Schematics Acquired . | . . . Robots Built . | . . . Authchips . | . . . Time . | . . . Total Robot Build Rating . | . . . Part Schematics Acquired . | . . . Parts Built . | . . . Authchips . | . . . Time . | . . . Total Part Build Rating . | . . . Parts Repaired 1 | . 1 . Time 26 | . 26 . Parts Recycled . | . . . Recycled Matter . | . . . Retrieved Matter . | . . . Retrieved Components . | . . . Parts Scanalyzed . | . . . Part Schematics Acquired . | . . . Parts Damaged . | . . . Bothacking | -11 -10 -10 ------------ Run | Scr Mat Min Used RIF Installer . | . . . Robots Hacked . | . . . Non-combat . | . . . Combat . | . . . Robot Hacks Applied . | . . . Relay Couplers Released . | . . . Fabnet Peak Effective % . | . . . Robots Rewired . | . . . Allies Hacked . | . . . Hacks Repelled . | . . . Allies | -11 -10 -10 -------- Run | Scr Mat Min Total Allies . | . . . Largest Group . | . . . Highest-Rated Group . | . . . Highest-Rated Ally . | . . . Total Orders . | . . . Ally Attacks . | . . . Total Damage . | . . . Kills . | . . . Allies Corrupted . | . . . Allies Melted . | . . . Intel | -11 -10 -10 ------- Run | Scr Mat Min Robot Analysis Total 3 | . 3 . Derelict Logs Recovered . | . . . Drone Launches . | . . . Drone Recoveries . | . . . Exploration | -11 -10 -10 ------------- Run | Scr Mat Min Turns Passed 1801 | . 1448 353 Spaces Moved 978 | 1 780 197 Core 9 | . . 9 Treads 765 | . 604 161 Legs 177 | 1 176 . Wheels . | . . . Hover . | . . . Flight 27 | . . 27 Fastest Speed 40 | 120 120 40 Average Speed 148 | 120 150 139 Slowest Speed 240 | 120 160 240 Overloaded Moves . | . . . Propulsion Burnouts . | . . . Robots Hopped 1 | . . 1 Cave-ins Triggered . | . . . Exploration Rate (%) 47 | 2 95 44 Regions Visited 2 Branch Regions 1 Pre-discovered Areas 1 | . 1 . Known Exits Taken . | . . . Unknown Exits Taken 2 | 1 1 . Scrap Searched 2 | . . 2 Spaces Dug . | . . . Terrain Destroyed . | . . . Melee . | . . . Projectile . | . . . AOE . | . . . Terrain Rammed . | . . . Walls Destroyed . | . . . Machines Disabled . | . . . Actions | -11 -10 -10 --------- Run | Scr Mat Min Total 1249 | . 1002 247 Wait 163 | . 141 22 Move 974 | . 779 195 Hop 1 | . . 1 Pick Up 24 | . 21 3 Fast Attach 5 | . 5 . Attach 7 | . 2 5 Detach 2 | . . 2 Swap 7 | . 7 . Drop 23 | . 20 3 Fire 43 | . 27 16 Melee . | . . . Ram . | . . . Kick . | . . . Crush . | . . . Escape Stasis . | . . . Rewire . | . . . Trap . | . . . Miscellaneous . | . . . Route ------- -11/Scrapyard -10/Materials (discovered 5 exits: [*Mat x3] / [*Min x2]) -10/Mines History --------- Turn | Location | Event 1 | -11/Scrapyard | Discovered new exit (range 0) 1 | -11/Scrapyard | Entered Materials 311 | -10/Materials | Discovered new exit (range 16) 315 | -10/Materials | Build established: Mutant 432 | -10/Materials | Discovered new exit (range 14) 500 | -10/Materials | Discovered new exit (range 16) 969 | -10/Materials | Discovered new exit (range 10) 1109 | -10/Materials | Discovered new exit (range 16) 1423 | -10/Materials | Repaired Beam Cannon 1449 | -10/Materials | Entered Mines 1473 | -10/Mines | Received a Rocket Launcher from a helpful Derelict 1741 | -10/Mines | Assembled infested the area 1769 | -10/Mines | Core integrity fell below 50% 1773 | -10/Mines | Core integrity fell below 20% 1799 | -10/Mines | Lost 4 parts (1p2n1u) 1802 | -10/Mines | Destroyed by as-68837 with Assembled Rifle Last Messages --------------- 01772_ The unstable cave ceiling collapses. 01772_ Dropped Lrg. Storage Unit. 01773_ The unstable cave ceiling collapses. 01773_ U-05 Engineer lays Concrete. 01778_ S-10 Pest destroyed. 01778_ K-01 Serf cleans the Pulverizer. 01779_ S-10 Pest destroyed. 01781_ K-01 Serf collects debris. 01781_ Acquired 17 matter. 01783_ Acquired Flight Unit. 01785_ Acquired Lgt. Ion Engine. 01786_ K-01 Serf collects debris. 01791_ System corrupted: Matter fused (-5). 01797_ Pulverizer disabled. 01798_ The unstable cave ceiling collapses. 01798_ Disposable Heat Sink crushed. 01798_ The unstable cave ceiling collapses. 01798_ Lgt. Armor Plating crushed. 01798_ R-06 Scavenger collects Seismic Detector. 01799_ The unstable cave ceiling collapses. Map ----- +----------------------------------------------------+ | ???????????????????????????????????????????? | | ?????????????????????#?????????????????????? | | ??????????????????? #??????????########### | | ????????????????## ######????# | | ?????????????? #????# """ """ | | ???????????? ????# """ """ | | ???????????? ?????# """ """ | | ??????????? ?????# | | ??????????? #?????# | | ??????????# ##????# | | ??????????# ##???# | | ?????????? " ##??##### ##### | | ????????? %" ######## #??## | | ???????????? ##*#??# | | ??????????????? #%#### | | ??????????????????# # #%%= | | ??????????????????# ##] [ | | ??????????????????## !!! #### | | ???????????????????## #]#] #??# | | ????????????????????### ## #??## | | ?????????????????????# ### # # #???## | | ?????????????????????## # # # #????? | | ??????????????????????# #####*###??? | | ??????????????????????# # % #??? | | ??????????????????##### !# #??? | | ??????????????????#@ a # """ """" #??? | | ??????????????????# ###### """ """" #??? | | ??????????????????# #????## "" """" #??? | | ??????????????????# #?????###############??? | | ??????????????????#aa??????????????????????? | | ?????????????????? ??????????????????????? | | ?????????????????? ?????????????????????? | | ??????????????????a ?????????????????????? | | ?????????????????? ????????????????????? | | ????????????????? ##????????????????????? | | ????????????????? ##?????????????????????? | | ?????????????????